fUSD/lending_fUSD_20241020
["ID","MTS","AMOUNT","RATE_DAILY","PERIOD"]
[340549774,1729443031912,-4344.26663189,0.00010743,2]
[340549775,1729443031923,-4312.59456803,0.00010743,2]
[340549776,1729443031934,-328.01300429,0.00010743,2]
[340549777,1729443031958,-495.72833055,0.00010743,2]
[340549778,1729443031971,-17342.44946436,0.00010743,2]
[340549779,1729443031981,-150.0,0.00010752,2]
[340549780,1729443031991,-150.0,0.00010754,2]
[340549781,1729443032001,-150.0,0.0001076,2]
[340549782,1729443032010,-150.0,0.00010763,2]
[340549783,1729443032020,-150.0,0.00010764,2]
[340549784,1729443032029,-570.64,0.00010764,2]
[340549785,1729443032039,-150.0,0.00010765,2]
[340549786,1729443032049,-150.0,0.00010767,2]
[340549787,1729443032058,-150.0,0.00010769,2]
[340549788,1729443032067,-150.0,0.00010771,2]
[340549789,1729443032077,-150.0,0.00010777,2]
[340549790,1729443032086,-150.0,0.00010779,2]
[340549791,1729443032096,-150.0,0.0001078,2]
[340549792,1729443032106,-150.0,0.00010796,2]
[340549793,1729443032115,-150.0,0.00010796,2]
[340549794,1729443032125,-150.0,0.000108,2]
[340549795,1729443032135,-150.0,0.00010801,2]
[340549796,1729443032145,-150.0,0.00010803,2]
[340549797,1729443032154,-150.0,0.00010804,2]
[340549798,1729443032164,-150.0,0.00010804,2]
[340549799,1729443032173,-150.0,0.00010804,2]
[340549800,1729443032183,-150.0,0.00010805,2]
[340549801,1729443032193,-150.0,0.00010806,2]
[340549802,1729443032202,-150.0,0.00010806,2]
[340549803,1729443032211,-150.0,0.0001081,2]
[340549804,1729443032220,-150.0,0.00010815,2]
[340549805,1729443032230,-150.0,0.00010816,2]
[340549806,1729443032241,-150.0,0.00010826,2]
[340549807,1729443032251,-150.0,0.00010827,2]
[340549808,1729443032260,-150.0,0.00010828,2]
[340549809,1729443032269,-150.0,0.00010829,2]
[340549810,1729443032279,-150.0,0.0001083,2]
[340549811,1729443032288,-150.0,0.00010832,2]
[340549812,1729443032298,-150.0,0.00010833,2]
[340549813,1729443032307,-150.0,0.00010834,2]
[340549814,1729443032317,-150.0,0.00010835,2]
[340549815,1729443032327,-150.0,0.00010838,2]
[340549816,1729443032337,-150.0,0.00010839,2]
[340549817,1729443032346,-150.0,0.0001084,2]
[340549818,1729443032356,-150.0,0.00010842,2]
[340549819,1729443032365,-150.0,0.00010846,2]
[340549820,1729443032375,-150.0,0.00010848,2]
[340549821,1729443032384,-150.0,0.00010853,2]
[340549822,1729443032394,-150.0,0.00010855,2]
[340549823,1729443032403,-150.0,0.00010855,2]
[340549824,1729443032412,-150.0,0.00010857,2]
[340549825,1729443032422,-150.0,0.00010857,2]
[340549826,1729443032431,-150.0,0.00010867,2]
[340549827,1729443032441,-150.0,0.00010869,2]
[340549828,1729443032451,-150.0,0.00010869,2]
[340549829,1729443032460,-150.0,0.00010871,2]
[340549830,1729443032469,-150.0,0.00010873,2]
[340549831,1729443032480,-150.0,0.00010873,2]
[340549832,1729443032490,-150.0,0.00010873,2]
[340549833,1729443032499,-150.0,0.00010882,2]
[340549834,1729443032509,-150.0,0.00010887,2]
[340549835,1729443032518,-599.24565817,0.0001089,2]
[340549836,1729443032527,-150.0,0.00010894,2]
[340549837,1729443032537,-150.0,0.00010894,2]
[340549838,1729443032547,-150.0,0.00010895,2]
[340549839,1729443032556,-150.0,0.00010898,2]
[340549840,1729443032566,-547.6152,0.00010899,2]
[340549841,1729443032575,-189.22796674,0.00010899,2]
[340549842,1729443032584,-1622.1573,0.00010899,2]
[340549843,1729443032593,-3497.970885,0.000109,2]
[340549844,1729443032602,-590.2073,0.000109,2]
[340549845,1729443032611,-2690.4862286,0.000109,2]
[340549846,1729443032627,-1021.9163714,0.000109,2]
[340549847,1729443032636,-4037.07805957,0.000109,2]
[340549848,1729443032647,-2099.48784043,0.000109,2]
[340549849,1729443032657,-178.7488535,0.000109,2]
[340549850,1729443032666,-1562.9325,0.000109,2]
[340549851,1729443032675,-2384.54013197,0.000109,2]
[340549852,1729443032690,-2425.2734058,0.000109,2]
[340549853,1729443032699,-169.16770408,0.000109,2]
[340549854,1729443032710,-292.7514,0.000109,2]
[340549855,1729443032719,-877.81163496,0.000109,2]
[340549856,1729443032728,-150.0,0.00010903,2]
[340549857,1729443032739,-150.0,0.00010908,2]
[340549858,1729443032748,-150.0,0.00010909,2]
[340549859,1729443032758,-150.0,0.00010909,2]
[340549860,1729443032767,-150.0,0.00010909,2]
[340549861,1729443032776,-150.0,0.0001091,2]
[340549862,1729443032786,-150.0,0.00010911,2]
[340549863,1729443032795,-150.0,0.00010918,2]
[340549864,1729443032805,-150.0,0.00010919,2]
[340549865,1729443032814,-150.0,0.00010921,2]
[340549866,1729443032823,-150.0,0.00010922,2]
[340549867,1729443032833,-178.5,0.00010925,2]
[340549868,1729443032842,-150.0,0.00010929,2]
[340549869,1729443032852,-150.0,0.0001093,2]
[340549870,1729443032861,-150.0,0.00010938,2]
[340549871,1729443032871,-150.0,0.00010943,2]
[340549872,1729443032880,-1000.0,0.00010945,2]
[340549873,1729443032889,-1000.0,0.00010945,2]
[340549874,1729443032898,-1147.9529,0.00010945,2]
[340549875,1729443032908,-150.0,0.00010948,2]
[340549876,1729443032918,-150.0,0.00010952,2]
[340549877,1729443032927,-150.0,0.00010953,2]
[340549878,1729443032938,-150.0,0.00010955,2]
[340549879,1729443032948,-158.58,0.00010959,2]
[340549880,1729443032959,-153.9,0.00010959,2]
[340549881,1729443032969,-180.09,0.00010959,2]
[340549882,1729443032979,-250.0,0.00010959,2]
[340549883,1729443032994,-752.67,0.00010959,2]
[340549884,1729443033003,-186.5,0.00010959,2]
[340549885,1729443033013,-272.32,0.00010959,2]
[340549886,1729443033023,-150.0,0.0001096,2]
[340549887,1729443033032,-150.0,0.00010963,2]
[340549888,1729443033043,-150.0,0.00010967,2]
[340549889,1729443033054,-150.0,0.00010969,2]
[340549890,1729443033063,-150.0,0.0001097,2]
[340549891,1729443033074,-150.0,0.0001097,2]
[340549892,1729443033083,-500.0,0.00010973,2]
[340549893,1729443033093,-150.0,0.00010974,2]
[340549894,1729443033103,-150.0,0.00010975,2]
[340549895,1729443033113,-150.0,0.00010975,2]
[340549896,1729443033123,-150.0,0.00010977,2]
[340549897,1729443033133,-150.0,0.0001098,2]
[340549898,1729443033143,-150.0,0.00010982,2]
[340549899,1729443033153,-150.0,0.00010985,2]
[340549900,1729443033163,-150.0,0.0001099,2]
[340549901,1729443033173,-150.0,0.00010991,2]
[340549902,1729443033183,-150.0,0.00010996,2]
[340549903,1729443033193,-150.0,0.00010996,2]
[340549904,1729443033203,-204.46414518,0.00010999,2]
[340549905,1729443033213,-500.0,0.00010999,2]
[340549906,1729443033223,-282.11902935,0.00010999,2]
[340549907,1729443033235,-500.0,0.00010999,2]
[340549908,1729443033248,-500.0,0.00010999,2]
[340549909,1729443033257,-599.92034465,0.00010999,2]
[340549910,1729443033267,-500.0,0.00010999,2]
[340549911,1729443033277,-14373.23728488,0.00011,2]
[340549912,1729443033440,-360.246502,0.00011,2]
[340549913,1729443033456,-1040241.84243259,0.00011,2]
[340549914,1729443033468,-1160.73125044,0.00011,2]
[340549915,1729443033480,-501.120688,0.00011,2]
[340549916,1729443033506,-662.53242,0.00011,2]
[340549917,1729443033518,-902.99942409,0.00011,2]
[340549918,1729443033530,-7991.39973216,0.00011,2]
[340549919,1729443038376,-204.46414517,0.00010999,2]
[340549920,1729443038386,-2393.09886091,0.00011,2]
[340549921,1729443038968,-839877.77233526,0.00011,2]
[340549931,1729443039741,-623.09648562,0.00011,2]
[340549932,1729443039883,-1491.90441221,0.00011,2]
[340549933,1729443039909,-1891.89,0.00011,2]
[340549957,1729443042875,-137889.22409,0.00011,2]
[340549958,1729443042886,-12600.055,0.00011,2]
[340549959,1729443042933,-1135.54103123,0.00011,2]
[340549960,1729443043046,-62001.77445859,0.00011,2]
[340549961,1729443043102,-3230.70846362,0.00011,2]
[340549971,1729443045752,-458.52,0.00011,2]
[340549972,1729443045762,-1284.70519148,0.00011,2]
[340549973,1729443045900,-1441.211853,0.00011,2]
[340549974,1729443045911,-90961.79441624,0.00011,2]
[340549975,1729443045922,-9002.72690644,0.00011,2]
[340549976,1729443046077,-1832.40009317,0.00011,2]
[340549977,1729443046093,-262.32200505,0.00011,2]
[340549978,1729443046103,-34232.72546875,0.00011,2]
[340549979,1729443046119,-641.337702,0.00011,2]
[340549980,1729443046129,-1840.87450557,0.00011,2]
[340549981,1729443046141,-620517.41774893,0.00011,2]
[340549982,1729443195338,500.0,0.00027,120]
[340549983,1729443204706,265.42,0.00010402,2]
[340549984,1729443268130,840.0,0.00010324,2]
[340549985,1729443352611,1379.39,0.00010057,2]
[340549986,1729443390894,150.0,0.00010049,2]
[340549987,1729443390919,100.0,0.00010049,2]
[340549988,1729443406158,1888.89,9.998e-05,2]
[340549989,1729443492178,204.65,9.945e-05,2]
[340549990,1729443547065,595.35,9.921e-05,2]
[340549991,1729443547086,800.0,9.921e-05,2]
[340549992,1729443547106,800.0,9.921e-05,2]
[340549993,1729443547130,21704.65,9.921e-05,2]
[340549994,1729443550071,150.76,9.921e-05,2]
[340549995,1729443560775,250.0,9.921e-05,2]
[340549996,1729443575861,589.44,9.916e-05,2]
[340549997,1729443726943,833.35,8.219e-05,2]
[340549998,1729443776553,328.0,9.903e-05,2]
[340549999,1729443797740,500.0,0.00027,120]
[340550000,1729443811033,265.42,9.895e-05,2]
[340550001,1729443889778,250.0,9.897e-05,2]
[340550002,1729444077138,162.96,9.859e-05,2]
[340550004,1729444109226,1567.51,9.853e-05,2]
[340550005,1729444141339,250.0,9.862e-05,2]
[340550006,1729444181717,150.0,9.886e-05,2]
[340550007,1729444181742,178.32,9.886e-05,2]
[340550008,1729444188258,-660.0,0.00010471,2]
[340550009,1729444203853,748.023,0.00010371,2]
[340550023,1729444231920,-173.35,0.00010471,2]
[340550026,1729444231930,-150.0,0.00010471,2]
[340550029,1729444231939,-250.0,0.00010589,2]
[340550032,1729444231950,-1000.0,0.00010689,2]
[340550035,1729444231959,-2500.0,0.00010689,2]
[340550038,1729444231969,-150.0,0.00010729,2]
[340550040,1729444231979,-14844.70863111,0.00010729,2]
[340550043,1729444231988,-388.35180297,0.00010732,2]
[340550045,1729444231998,-300.0,0.00010733,2]
[340550047,1729444232007,-284.46816432,0.00010758,2]
[340550048,1729444232017,-150.0,0.00010767,2]
[340550049,1729444232030,-150.0,0.00010785,2]
[340550050,1729444232039,-299.99,0.00010785,2]
[340550051,1729444232049,-150.0,0.00010788,2]
[340550052,1729444232059,-31328.26979499,0.00010789,2]
[340550053,1729444232071,-580.87891067,0.00010789,2]
[340550054,1729444232082,-689.30241408,0.00010789,2]
[340550055,1729444232098,-212401.54888026,0.00010789,2]
[340550056,1729444232107,-999.99,0.00010789,2]
[340550057,1729444232118,-387.55,0.00010789,2]
[340550058,1729444232127,-150.0,0.00010802,2]
[340550059,1729444232136,-499.99,0.00010802,2]
[340550060,1729444232145,-321.89,0.00010802,2]
[340550061,1729444232155,-208.2,0.00010802,2]
[340550062,1729444232164,-2531.19,0.00010802,2]
[340550063,1729444232173,-150.0,0.00010804,2]
[340550064,1729444232182,-150.0,0.00010809,2]
[340550065,1729444232192,-150.0,0.00010818,2]
[340550066,1729444232200,-150.0,0.00010834,2]
[340550067,1729444232210,-150.0,0.0001084,2]
[340550068,1729444232219,-6862.11,0.00010858,2]
[340550069,1729444232229,-150.0,0.00010867,2]
[340550070,1729444232238,-464.27060667,0.00010873,2]
[340550071,1729444232248,-150.0,0.00010873,2]
[340550072,1729444232258,-150.0,0.00010879,2]
[340550073,1729444232267,-128214.72487622,0.00010889,2]
[340550076,1729444232281,-1603.04704932,0.00010889,2]
[340550078,1729444232292,-664.66974311,0.00010889,2]
[340550080,1729444232304,-132583.30111559,0.00010889,2]
[340550082,1729444232314,-948.3661,0.0001089,2]
[340550084,1729444232323,-1345.7319,0.0001089,2]
[340550086,1729444232333,-6795.8341,0.0001089,2]
[340550088,1729444232342,-100000.0,0.0001089,2]
[340550090,1729444232351,-11527.1382,0.0001089,2]
[340550092,1729444232362,-500.0,0.0001089,2]
[340550094,1729444232371,-8016.2816,0.000109,2]
[340550096,1729444232381,-1293.4225,0.000109,2]
[340550098,1729444232391,-167.3899,0.000109,2]
[340550100,1729444232400,-925.3018,0.000109,2]
[340550102,1729444232410,-1000.0,0.000109,2]
[340550104,1729444232420,-177.34935106,0.000109,2]
[340550106,1729444232430,-150.0,0.00010907,2]
[340550108,1729444232439,-150.0,0.00010916,2]
[340550110,1729444232448,-150.0,0.0001092,2]
[340550112,1729444232458,-3185.811,0.0001093,2]
[340550114,1729444232468,-391.2,0.00010935,2]
[340550115,1729444232477,-150.0,0.00010946,2]
[340550117,1729444232487,-500.0,0.00010958,2]
[340550119,1729444232496,-500.0,0.00010958,2]
[340550121,1729444232505,-500.0,0.00010958,2]
[340550123,1729444232515,-500.0,0.00010958,2]
[340550125,1729444232524,-345.60399191,0.00010958,2]
[340550126,1729444232534,-500.0,0.00010958,2]
[340550127,1729444232543,-500.0,0.00010958,2]
[340550128,1729444232552,-463.4085009,0.00010958,2]
[340550129,1729444232561,-175.62,0.00010959,2]
[340550130,1729444232571,-157.34,0.00010959,2]
[340550131,1729444232580,-250.0,0.00010959,2]
[340550132,1729444232589,-1500.0,0.00010959,2]
[340550133,1729444232598,-186.5,0.00010959,2]
[340550134,1729444232607,-150.0,0.00010959,2]
[340550135,1729444232616,-168.37,0.00010959,2]
[340550136,1729444232626,-2000.0,0.00010959,2]
[340550137,1729444232636,-150.0,0.00010967,2]
[340550138,1729444232645,-150.0,0.00010968,2]
[340550139,1729444232655,-150.0,0.00010971,2]
[340550140,1729444232664,-160.00294817,0.00010973,2]
[340550141,1729444232673,-160.30880985,0.00010973,2]
[340550142,1729444232683,-500.66472637,0.00010973,2]
[340550143,1729444232692,-482.07892231,0.00010984,2]
[340550144,1729444232701,-150.0,0.00010986,2]
[340550145,1729444232711,-112055.97178323,0.00011,2]
[340550146,1729444232730,-1944.40115768,0.00011,2]
[340550147,1729444232749,-18404.02422153,0.00011,2]
[340550148,1729444232760,-5905.61785603,0.00011,2]
[340550150,1729444238379,-246.80532865,0.000109,2]
[340550151,1729444238387,-263.64893215,0.00011,2]
[340550152,1729444238411,-0.57924074,0.00011,2]
[340550155,1729444238488,-8836.50915609,0.00011,2]
[340550156,1729444238547,-529.44,0.00011,2]
[340550157,1729444239188,-977.77687236,0.00011,2]
[340550162,1729444240070,-3819.29267425,0.00011,2]
[340550163,1729444240082,-5721.0,0.00011,2]
[340550164,1729444240094,-2287.92,0.00011,2]
[340550165,1729444240178,-2399.999999,0.00011,2]
[340550171,1729444240418,-2777.300002,0.00011,2]
[340550178,1729444244031,-31038.828504,0.00011,2]
[340550183,1729444245989,-1614.61653058,0.00011,2]
[340550184,1729444246056,-1236.508019,0.00011,2]
[340550185,1729444246207,-11062.11061774,0.00011,2]
[340550186,1729444246264,-5791.32644452,0.00011,2]
[340550189,1729444294326,150.0,0.0001,2]
[340550190,1729444294353,100.0,0.0001,2]
[340550191,1729444351574,785.85,9.731e-05,2]
[340550192,1729444397832,500.0,0.00026933,120]
[340550194,1729444651592,165.14,0.00010386,2]
[340550195,1729444651821,165.14,0.00010403,2]
[340550196,1729444723090,548.58,0.0001028,2]
[340550197,1729444750415,250.0,0.00010313,2]
[340550198,1729444765616,180.54,0.00010342,2]
[340550199,1729444794713,23900.0,0.00010312,2]
[340550200,1729444851135,262.4,0.0001019,2]
[340550201,1729444887412,746.55,8.245e-05,2]
[340550202,1729444972071,250.0,0.0001014,2]
[340550203,1729444980511,1254.07,0.00010141,2]
[340550204,1729444997648,483.498069,0.00027,120]
[340550215,1729445096885,200.0,0.00010116,2]
[340550217,1729445106069,150.76,0.00010122,2]
[340550222,1729445112611,155.15,0.00010127,2]
[340550223,1729445120346,658.421971,9e-05,2]
[340550224,1729445130308,19604.49010051,0.000101,2]
[340550226,1729445233125,-150.0,0.00010411,2]
[340550227,1729445233148,-113.88435031,0.0001042,2]
[340550228,1729445244023,227.0,0.00027,60]
[340550229,1729445280207,1400.4854188,0.0001,2]
[340550230,1729445289122,261.56,0.00010219,2]
[340550231,1729445347886,250.0,0.00010262,2]
[340550232,1729445413351,790.08,0.00010263,2]
[340550240,1729445432205,-51.25564969,0.0001042,2]
[340550241,1729445432214,-165.14,0.00010438,2]
[340550242,1729445432223,-79.20867221,0.00010509,2]
[340550243,1729445432236,-667.34132779,0.00010509,2]
[340550244,1729445432246,-151.92160908,0.00010688,2]
[340550245,1729445432265,-148.07839092,0.00010688,2]
[340550246,1729445432274,-155.36728718,0.00010689,2]
[340550247,1729445432326,-39781.93101282,0.00010689,2]
[340550248,1729445432335,-150.0,0.00010802,2]
[340550249,1729445432344,-150.0,0.00010892,2]
[340550250,1729445432353,-499.99,0.00010899,2]
[340550251,1729445432362,-489.28,0.00010899,2]
[340550252,1729445432372,-150.0,0.00010899,2]
[340550253,1729445432381,-21760.31745599,0.000109,2]
[340550254,1729445438716,-31781.28954401,0.000109,2]
[340550255,1729445438726,-1000.0,0.000109,2]
[340550256,1729445438735,-464.28,0.000109,2]
[340550257,1729445438745,-158.34545904,0.000109,2]
[340550258,1729445438755,-176.41634941,0.000109,2]
[340550259,1729445438765,-162.76849563,0.000109,2]
[340550260,1729445438774,-7500.0,0.000109,2]
[340550261,1729445438784,-472.87,0.000109,2]
[340550262,1729445438794,-5207.18,0.000109,2]
[340550263,1729445438805,-1404.55,0.000109,2]
[340550264,1729445438815,-346.32,0.000109,2]
[340550265,1729445438824,-12170.24735152,0.000109,2]
[340550266,1729445438833,-7652.30868209,0.000109,2]
[340550267,1729445438842,-272.72487807,0.000109,2]
[340550268,1729445438852,-150.0,0.00010909,2]
[340550269,1729445438861,-803.7467,0.00010945,2]
[340550270,1729445438871,-158.58,0.00010959,2]
[340550271,1729445438880,-419.05,0.00010959,2]
[340550272,1729445438890,-250.0,0.00010959,2]
[340550273,1729445438899,-150.0,0.00010959,2]
[340550274,1729445438909,-186.5,0.00010959,2]
[340550275,1729445438919,-158.2,0.00010959,2]
[340550276,1729445438928,-150.0,0.00010962,2]
[340550277,1729445438937,-150.0,0.00010963,2]
[340550278,1729445438947,-150.0,0.00010968,2]
[340550279,1729445438956,-161.5615216,0.00010973,2]
[340550280,1729445438966,-500.0,0.00010973,2]
[340550281,1729445438976,-552.2799003,0.00010999,2]
[340550282,1729445438985,-500.0,0.00010999,2]
[340550283,1729445438995,-635.16716081,0.00010999,2]
[340550284,1729445439004,-500.0,0.00010999,2]
[340550285,1729445439013,-500.0,0.00010999,2]
[340550286,1729445439023,-444.51778763,0.00010999,2]
[340550287,1729445439032,-10354.86875976,0.00011,2]
[340550288,1729445439044,-5146.02669942,0.00011,2]
[340550289,1729445439065,-8714.25382459,0.00011,2]
[340550290,1729445439080,-349.68233743,0.00011,2]
[340550291,1729445439091,-401982.26791096,0.00011,2]
[340550292,1729445439103,-119803.1125,0.00011,2]
[340550293,1729445439114,-127014.67450056,0.00011,2]
[340550294,1729445439421,-630608.36854144,0.00011,2]
[340550298,1729445440121,-272.72487804,0.00010904,2]
[340550299,1729445440130,-3168.07353496,0.00011,2]
[340550300,1729445440183,-10340.9406,0.00011,2]
[340550301,1729445440193,-499.04453113,0.00011,2]
[340550302,1729445440363,-93596.39382317,0.00011,2]
[340550303,1729445440376,-2378.77886085,0.00011,2]
[340550304,1729445440388,-20410.21731038,0.00011,2]
[340550312,1729445443174,-2113.02523034,0.00011,2]
[340550313,1729445443186,-57966.03426995,0.00011,2]
[340550314,1729445443233,-131252.64578863,0.00011,2]
[340550315,1729445443245,-367.94529826,0.00011,2]
[340550316,1729445443255,-1710.37784475,0.00011,2]
[340550317,1729445443404,-6582.8763,0.00011,2]
[340550318,1729445443463,-497.90396752,0.00011,2]
[340550321,1729445444777,671.89,9.893e-05,2]
[340550322,1729445446210,-272.72487804,0.00010908,2]
[340550323,1729445446220,-2857.28176196,0.00011,2]
[340550324,1729445446231,-1032.03,0.00011,2]
[340550325,1729445446380,-31615.85047708,0.00011,2]
[340550326,1729445446443,-895.73307206,0.00011,2]
[340550338,1729445586270,300.0,0.000103,3]
[340550339,1729445588604,600.0,0.000104,3]
[340550340,1729445590797,900.0,0.000105,3]
[340550341,1729445592928,1300.0,0.000106,3]
[340550342,1729445595056,1600.0,0.000107,3]
[340550343,1729445597459,300.0,0.000108,3]
[340550344,1729445599560,137.73426272,0.000109,3]
[340550345,1729445599585,162.26573728,0.000109,3]
[340550346,1729445612104,3089.2411,0.0001032,2]
[340550353,1729445983686,638.29,9.564e-05,2]
[340550354,1729446114263,250.0,0.0001,2]
[340550355,1729446431139,-261.56,0.00010516,2]
[340550356,1729446431163,-2531.34130815,0.000106,2]
[340550357,1729446431187,-300.0,0.00010699,2]
[340550358,1729446431211,-5468.5474236,0.000107,2]
[340550362,1729446589624,150.0,0.00027,60]
[340550365,1729446632327,-180.54,0.00010516,2]
[340550366,1729446632336,-250.0,0.00010535,2]
[340550367,1729446632345,-549.69063339,0.0001054,2]
[340550368,1729446632356,-282.03936661,0.0001054,2]
[340550369,1729446632365,-150.27,0.00010549,2]
[340550370,1729446632374,-632.07,0.00010639,2]
[340550371,1729446632383,-2107.9821764,0.000107,2]
[340550372,1729446632392,-174.073,0.0001078,2]
[340550373,1729446632401,-150.0,0.00010877,2]
[340550374,1729446632410,-150.0,0.00010897,2]
[340550375,1729446632418,-1952.58960575,0.00010898,2]
[340550376,1729446632429,-2904.65689425,0.00010898,2]
[340550377,1729446632438,-672.32181819,0.00010898,2]
[340550378,1729446632448,-4477.92071747,0.00010898,2]
[340550379,1729446632459,-29303.92456434,0.00010898,2]
[340550380,1729446632468,-3766.3612,0.00010898,2]
[340550381,1729446632477,-433.2501,0.00010898,2]
[340550382,1729446632486,-5207.528,0.00010898,2]
[340550383,1729446632496,-962.6503,0.00010898,2]
[340550384,1729446632506,-11992.51737638,0.00010899,2]
[340550385,1729446632517,-1000.0,0.000109,2]
[340550386,1729446632527,-158.34545894,0.000109,2]
[340550387,1729446632536,-176.4163494,0.000109,2]
[340550388,1729446632545,-179.1768,0.000109,2]
[340550389,1729446632554,-4856.1104,0.000109,2]
[340550390,1729446632563,-170.45304881,0.000109,2]
[340550391,1729446632574,-267.52,0.00010959,2]
[340550392,1729446632583,-157.34,0.00010959,2]
[340550393,1729446632593,-203.6231115,0.00010973,2]
[340550394,1729446632602,-500.0,0.00010973,2]
[340550395,1729446632611,-4068.8874896,0.00010998,2]
[340550396,1729446632621,-67864.37783576,0.00010998,2]
[340550397,1729446632633,-1918.86696003,0.00010998,2]
[340550398,1729446632646,-4057.61514411,0.00010998,2]
[340550399,1729446632659,-7059.5764686,0.00010998,2]
[340550400,1729446632671,-2135.8388,0.00010998,2]
[340550401,1729446632683,-4997.4378221,0.00010998,2]
[340550402,1729446632692,-5555.2522775,0.00010998,2]
[340550403,1729446632703,-367.70556,0.00010998,2]
[340550404,1729446632715,-544.02,0.00010998,2]
[340550405,1729446632726,-689.58642,0.00010998,2]
[340550406,1729446632737,-639.2284197,0.00010998,2]
[340550407,1729446632755,-9819.2094136,0.00010998,2]
[340550409,1729446632765,-606.09,0.00010999,2]
[340550411,1729446632776,-160.5019764,0.00010999,2]
[340550413,1729446632786,-192987.26921017,0.00011,2]
[340550415,1729446632797,-6822.66290055,0.00011,2]
[340550417,1729446632808,-324.2343219,0.00011,2]
[340550419,1729446632820,-603.03497768,0.00011,2]
[340550421,1729446632833,-765.29022052,0.00011,2]
[340550423,1729446632854,-1091.26357004,0.00011,2]
[340550424,1729446632865,-302.14414535,0.00011,2]
[340550425,1729446632883,-934.36070228,0.00011,2]
[340550426,1729446632894,-5653.0,0.00011,2]
[340550428,1729446638780,-539.18850047,0.00011,2]
[340550431,1729446638841,-670.91304256,0.00011,2]
[340550432,1729446638856,-49987.76090814,0.00011,2]
[340550433,1729446638871,-1000.0,0.00011,2]
[340550434,1729446638900,-410.82807031,0.00011,2]
[340550435,1729446638916,-445.42957939,0.00011,2]
[340550436,1729446638930,-1018.16644036,0.00011,2]
[340550437,1729446638945,-736.91457578,0.00011,2]
[340550438,1729446638959,-1599.21665465,0.00011,2]
[340550439,1729446638973,-401.06482223,0.00011,2]
[340550440,1729446638987,-2257.77263734,0.00011,2]
[340550441,1729446639001,-544.61761896,0.00011,2]
[340550442,1729446639015,-1414.17,0.00011,2]
[340550443,1729446639030,-603.15285,0.00011,2]
[340550444,1729446639044,-19453.41639563,0.00011,2]
[340550445,1729446639080,-676.82556745,0.00011,2]
[340550446,1729446639094,-1796.11235154,0.00011,2]
[340550447,1729446640379,-514.3356057,0.00011,2]
[340550454,1729446640757,-8521.36149501,0.00011,2]
[340550456,1729446640771,-1551.57662124,0.00011,2]
[340550459,1729446640790,-1040.26083,0.00011,2]
[340550462,1729446640804,-1822.53339675,0.00011,2]
[340550498,1729446643566,-428.8894702,0.00011,2]
[340550499,1729446643579,-7832.85836666,0.00011,2]
[340550500,1729446643624,-1454770.5522699,0.00011,2]
[340550501,1729446643634,-272399.25277419,0.00011,2]
[340550502,1729446643643,-12142.42749619,0.00011,2]
[340550503,1729446643652,-2859763.86401973,0.00011,2]
[340550504,1729446643661,-1230241.38976802,0.00011,2]
[340550505,1729446643670,-79112.60926802,0.00011,2]
[340550506,1729446643680,-699851.63495309,0.00011,2]
[340550507,1729446646386,-17207.21582048,0.00011,2]
[340550508,1729446646607,-55063.73631687,0.00011,2]